Cogmind - Beta 13 @@@ ROGUE MODE // 2024.05.17 @ 18:02:14 Player: Jahimaih Green Turtle Result: Destroyed by Y-45 Defender with Beam Rifle Performance ------------- Evolutions (1) 500 Regions Visited (2) 400 Robots Destroyed (25) 125 Value Destroyed (512) 512 Prototype IDs (3) 60 Alien Tech Used (0) 0 Bonus (0) 0 TOTAL SCORE: 1597 Bonus ------- None Cogmind --------- Core Integrity 0/400 Matter 300/300 Energy 100/100 System Corruption 0% Temperature Cool (9) Movement Core (700) Ox13 Location -9/Materials Parts ------- > --- POWER (2) -------- (None) > --- PROPULSION (2) --- (None) > --- UTILITY (3) ------ High-capacity Storage Unit > --- WEAPON (2) ------- (None) > --- INVENTORY (20) --- Light Ion Engine Beam Rifle Mining Laser Peak State ------------ > --- POWER ------------ Light Nuclear Core > --- PROPULSION ------- Wheel Wheel > --- UTILITY ---------- High-capacity Storage Unit Improved Terrain Scanner Seismic Detector > --- WEAPON ----------- Small Laser Assault Rifle > --- INVENTORY -------- Heat Sink Assault Rifle Mining Laser [Rating: 12] Favorites ----------- Power Light Ion Engine Engine Light Ion Engine Power Core Light Nuclear Core Propulsion Wheel Treads Light Treads Wheel Wheel Utility Improved Terrain Scanner Device Improved Terrain Scanner Storage High-capacity Storage Unit Weapon Assault Rifle Energy Gun Small Laser Ballistic Gun Assault Rifle Launcher Grenade Launcher Special Weapon Mining Laser Build | -11 -10 -9 ------- Run | Yrd Mat Mat Slots Evolved 2 | . . 2 Power 1 | . . 1 Propulsion . | . . . Utility 1 | . . 1 Weapon . | . . . Parts Attached 26 | 7 6 13 Power 5 | 1 1 3 Engine 4 | 1 1 2 Core 1 | . . 1 Reactor . | . . . Propulsion 5 | 2 1 2 Treads 1 | . . 1 Leg . | . . . Wheel 4 | 2 1 1 Hover . | . . . Flight . | . . . Utility 5 | 2 1 2 Device 4 | 2 . 2 Storage 1 | . 1 . Processor . | . . . Hackware . | . . . Protection . | . . . Artifact . | . . . Weapon 11 | 2 3 6 Energy Gun 2 | . . 2 Energy Cannon . | . . . Ballistic Gun 6 | 2 1 3 Ballistic Cannon . | . . . Launcher 2 | . 2 . Special Weapon 1 | . . 1 Impact Weapon . | . . . Slashing Weapon . | . . . Piercing Weapon . | . . . Special Melee Weapon . | . . . Unidentified Prototypes . | . . . Parts Lost 17 | . 2 15 Power 4 | . 1 3 Propulsion 4 | . . 4 Utility 3 | . . 3 Weapon 6 | . 1 5 Highest Loss Streak 11 | . 2 11 To Critical Strikes . | . . . Average Slot Usage (%) 80 | . 97 63 Engine 8 | . 13 4 Core 1 | . . 3 Wheel 19 | . 28 10 Device 19 | . 23 14 Storage 7 | . 4 11 Energy Gun 3 | . . 7 Ballistic Gun 13 | . 14 11 Launcher 5 | . 11 . Naked Turns . | . . . Heaviest Build 51 | 9 49 51 Greatest Support 20 | 20 20 20 Greatest Overweight (x) 14 | . 2 14 Average Overweight (x) 1 | . . 3 Largest Inventory Capacity 20 | 5 20 20 Average Capacity 13 | 5 9 20 Most Carried 6 | 5 6 5 Average Carried 3 | 1 5 2 Final Capacity 20 | 5 20 20 Final Carried 6 | 5 6 3 Class Distribution -------------------- 77% | Mutant 22% | Scavenger-Mutant Dominant Class ---------------- Mutant | -10/Materials Mutant | -9/Materials Resources | -11 -10 -9 ----------- Run | Yrd Mat Mat Matter Collected 646 | 306 137 203 Remotely . | . . . Salvage Created 638 | 94 312 232 Parts 45 | 10 18 17 Haulers Intercepted 1 | . 1 . Recyclers Shooed . | . . . Parts Field Recycled . | . . . Retrieved Matter . | . . . Parts Self-Destructed . | . . . Prevented . | . . . Kills | -11 -10 -9 ------- Run | Yrd Mat Mat Combat Hostiles Destroyed 17 | 1 8 8 Guns 11 | 1 3 7 Cannons 1 | . . 1 AOE 5 | . 5 . Classes Destroyed 8 | 2 4 2 Worker 2 | . 1 1 Builder 2 | . 1 1 Tunneler 2 | 2 . . Hauler 1 | . 1 . Watcher 1 | . 1 . Swarmer 6 | . . 6 Grunt 10 | 1 8 1 Sentry 1 | . . 1 Best Kill Streak 4 | 3 4 3 Combat Bots Only 3 | 1 2 3 Max Kills in Single Turn 2 | 1 2 1 Gunslinging . | . . . Exploded 2 | . 2 . Melee . | . . . Uniques/NPCs Destroyed . | . . . Combat | -11 -10 -9 -------- Run | Yrd Mat Mat Hostile Shots Fired 174 | 7 28 139 Missed 57 | 3 9 45 Damage Taken 1378 | 44 230 1104 Core 472 | . 68 404 Absorbed by Shields . | . . . Core Remaining (%) 86 | 100 72 . Volleys Fired 61 | 6 19 36 Largest 2 | 2 2 2 Hottest 120 | 40 50 120 Shots Fired 90 | 12 23 55 Gun 83 | 12 17 54 Cannon . | . . . Launcher 6 | . 6 . Special 1 | . . 1 Kinetic 71 | 12 17 42 Thermal 13 | . . 13 Explosive 6 | . 6 . Electromagnetic . | . . . Robot Hit Streak 14 | 1 5 14 Robot Miss Streak 3 | 3 1 3 Penetration Max . | . . . Secondary Targets 2 | . . 2 Max Gunslinging Chain 1 | . . 1 Shots Hit Robots 58 | 3 15 40 Core Hits 34 | 4 18 12 Critical Kills . | . . . Critical Parts Destroyed 1 | . . 1 Critical Strikes 1 | . . 1 Destroy 1 | . . 1 Melee Attacks . | . . . Impact . | . . . Slashing . | . . . Piercing . | . . . Sneak Attacks . | . . . Combat Hostiles . | . . . Follow-up Attacks . | . . . Damage Inflicted 1214 | 76 683 455 Guns 650 | 76 143 431 Cannons . | . . . Explosions 540 | . 540 . Melee . | . . . Ramming . | . . . Kinetic 525 | 76 143 306 Thermal 149 | . . 149 Explosive 540 | . 540 . Electromagnetic . | . . . Impact . | . . . Slashing . | . . . Piercing . | . . . Highest Corruption . | . . . Average Corruption . | . . . Corruption Purged . | . . . Corruption Blocked . | . . . Overload Shots . | . . . Overflow Damage 8 | . 8 . Projectiles . | . . . Explosions 8 | . 8 . Melee . | . . . Knockbacks . | . . . Impact . | . . . Kinetic . | . . . Secondary . | . . . Self-Inflicted Damage . | . . . Shots . | . . . Rammed . | . . . Targets Rammed . | . . . Kicked . | . . . Crushed . | . . . Highest Temperature 15 | . 11 15 Average Temperature 4 | . 3 5 Received Heat Transfer 510 | 24 129 357 Siege Activations . | . . . Robots Corrupted . | . . . Combat Hostiles . | . . . Parts Fried . | . . . Impact Corruptions . | . . . Robots Melted . | . . . Combat Hostiles . | . . . Parts Melted . | . . . Heat Transferred 325 | . . 325 Parts Sabotaged . | . . . Parts Stolen . | . . . Parts Stripped . | . . . Power Chain Reactions . | . . . Alert | -11 -10 -9 ------- Run | Yrd Mat Mat Peak Influence 328 | 30 328 263 Initial 133 | . 19 133 Average 142 | 10 148 188 Maximum Alert Level 1 | . 1 1 Low Security (%) 67 | 100 64 57 Level 1 32 | . 35 42 Level 2 . | . . . Level 3 . | . . . Level 4 . | . . . Level 5 . | . . . High Security . | . . . Max Security . | . . . Squads Dispatched 4 | . 3 1 Investigation 2 | . 2 . Extermination . | . . . Reinforcement 2 | . 1 1 Assault . | . . . Garrison . | . . . Intercept . | . . . Searches Triggered . | . . . Construction Impeded . | . . . Haulers Reinforced . | . . . Active Scanning Responses . | . . . Cargo Convoy Interrupts . | . . . Stealth | -11 -10 -9 --------- Run | Yrd Mat Mat Distress Signals 5 | . 2 3 Communications Jammed . | . . . Distress Signals . | . . . Times Spotted 33 | 1 15 17 Peak Tracking Total 6 | 1 4 6 Tactical Retreats 1 | . . 1 Traps | -11 -10 -9 ------- Run | Yrd Mat Mat Traps Triggered 2 | . 2 . Indirectly . | . . . Trap Hack Attempts . | . . . Triggered . | . . . Disarmed . | . . . Reprogrammed . | . . . Reused . | . . . Traps Extracted . | . . . Installed . | . . . Triggered . | . . . Machines | -11 -10 -9 ---------- Run | Yrd Mat Mat Machines Disabled 1 | . 1 . Max in Single Turn 1 | . 1 . Machines Repaired . | . . . Machines Dismantled . | . . . Machines Sabotaged . | . . . Overloaded Fab Kills . | . . . Hacking | -11 -10 -9 --------- Run | Yrd Mat Mat Machines Accessed 6 | . 5 1 Terminals 6 | . 5 1 Fabricators . | . . . Repair Stations . | . . . Recycling Units . | . . . Scanalyzers . | . . . Garrison Access . | . . . Total Hacks 20 | . 14 6 Successful 13 | . 9 4 Failed 7 | . 5 2 Catastrophic 1 | . 1 . Database Lockouts . | . . . Manual 1 | . 1 . Terminals 20 | . 14 6 Fabricators . | . . . Repair Stations . | . . . Recycling Units . | . . . Scanalyzers . | . . . Garrison Access . | . . . Terminal Hacks 13 | . 9 4 Record 6 | . 2 4 Prototype ID Bank 2 | . 2 . Locate Traps 1 | . 1 . Dispatch Records 2 | . 2 . Maintenance Status 1 | . 1 . Zone Layout 1 | . 1 . Fabricator Hacks . | . . . Repair Station Hacks . | . . . Recycling Unit Hacks . | . . . Scanalyzer . | . . . Garrison Access Hacks . | . . . Unauthorized Hacks . | . . . Terminals . | . . . Fabricators . | . . . Repair Stations . | . . . Recycling Units . | . . . Scanalyzers . | . . . Garrison Access . | . . . Data Cores Recovered . | . . . Used . | . . . Hacking Detections 5 | . 4 1 Full Trace Events 1 | . 1 . Feedback Events . | . . . Feedback Blocked . | . . . Robot Schematics Acquired . | . . . Robots Built . | . . . Authchips . | . . . Time . | . . . Total Robot Build Rating . | . . . Part Schematics Acquired . | . . . Parts Built . | . . . Authchips . | . . . Time . | . . . Total Part Build Rating . | . . . Parts Repaired . | . . . Time . | . . . Parts Recycled . | . . . Recycled Matter . | . . . Retrieved Matter . | . . . Retrieved Components . | . . . Parts Scanalyzed . | . . . Part Schematics Acquired . | . . . Parts Damaged . | . . . Bothacking | -11 -10 -9 ------------ Run | Yrd Mat Mat Used RIF Installer . | . . . Robots Hacked . | . . . Non-combat . | . . . Combat . | . . . Robot Hacks Applied . | . . . Relay Couplers Released . | . . . Fabnet Peak Effective % . | . . . Robots Rewired . | . . . Allies Hacked . | . . . Hacks Repelled . | . . . Allies | -11 -10 -9 -------- Run | Yrd Mat Mat Total Allies . | . . . Largest Group . | . . . Highest-Rated Group . | . . . Highest-Rated Ally . | . . . Total Orders . | . . . Ally Attacks . | . . . Total Damage . | . . . Kills . | . . . Allies Corrupted . | . . . Allies Melted . | . . . Intel | -11 -10 -9 ------- Run | Yrd Mat Mat Robot Analysis Total . | . . . Derelict Logs Recovered . | . . . Drone Launches . | . . . Drone Recoveries . | . . . Exploration | -11 -10 -9 ------------- Run | Yrd Mat Mat Turns Passed 718 | 119 307 292 Spaces Moved 458 | 97 257 104 Core 24 | 19 . 5 Treads 7 | . . 7 Legs . | . . . Wheels 427 | 78 257 92 Hover . | . . . Flight . | . . . Fastest Speed 50 | 50 80 110 Average Speed 102 | 74 88 163 Slowest Speed 750 | 80 110 750 Overloaded Moves . | . . . Propulsion Burnouts . | . . . Robots Hopped . | . . . Cave-ins Triggered . | . . . Exploration Rate (%) 21 | 9 42 12 Regions Visited 2 Branch Regions . Pre-discovered Areas . | . . . Known Exits Taken . | . . . Unknown Exits Taken 2 | 1 1 . Scrap Searched . | . . . Spaces Dug . | . . . Terrain Destroyed 46 | . 46 . Melee . | . . . Projectile . | . . . AOE 46 | . 46 . Terrain Rammed . | . . . Walls Destroyed . | . . . Machines Disabled . | . . . Actions | -11 -10 -9 --------- Run | Yrd Mat Mat Total 617 | 131 314 172 Wait 41 | 10 22 9 Move 456 | 96 256 104 Hop . | . . . Pick Up 27 | 12 7 8 Fast Attach 1 | . 1 . Attach 24 | 7 4 13 Detach 2 | . . 2 Swap 1 | . 1 . Drop 4 | . 4 . Fire 61 | 6 19 36 Melee . | . . . Ram . | . . . Kick . | . . . Crush . | . . . Escape Stasis . | . . . Rewire . | . . . Trap . | . . . Miscellaneous . | . . . Route ------- -11/Scrapyard -10/Materials -9/Materials (discovered 1 exit: [*Sto]) History --------- Turn | Location | Event 2 | -11/Scrapyard | Met Revision 17 62 | -11/Scrapyard | Discovered new exit (range 8) 120 | -11/Scrapyard | Entered Materials 308 | -10/Materials | Build established: Mutant 365 | -10/Materials | Discovered new exit (range 20) 427 | -10/Materials | Entered another Materials area 427 | -9/Materials | Evolved 2 slots: Power x1, Utility x1 439 | -9/Materials | Discovered new exit (range 15) 548 | -9/Materials | Lost 4 parts (1p1n1u1w) 652 | -9/Materials | Core integrity fell below 50% 706 | -9/Materials | Core integrity fell below 20% 719 | -9/Materials | Destroyed by Y-45 Defender with Beam Rifle Last Messages --------------- U-05 Engineer lays Concrete. U-05 Engineer builds a Wall. U-05 Engineer lays Concrete. Acquired Lgt. Treads. U-05 Engineer lays Concrete. U-05 Engineer builds a Wall. U-05 Engineer lays Concrete. Lgt. Assault Rifle destroyed. Critical hit (Burn: +37). U-05 Engineer lays Concrete. U-05 Engineer builds a Wall. U-05 Engineer lays Concrete. U-05 Engineer builds a Wall. U-05 Engineer lays Concrete. Lgt. Treads destroyed. U-05 Engineer lays Concrete. S-10 Pest suffers critical hit (Burn). S-10 Pest destroyed. U-05 Engineer lays Concrete. [Achievement: First Step to Greatness] Map ----- +----------------------------------------------------+ | ????????????#??????#### #????#?????????????????? | | ?????? ##########T## #??????????????????????? | | ????? #??????????????????????? | | ????? #??? ??????????????????? | | ????? #??????????????????????? | | ?????? ########## ### #????????????#?????????? | | ????????????????# ?## #?????? ???????????????? | | ???????????#????# ??# #???? "????????????????? | | ?????????????#??# ??# # ?"" "?????#??????????? | | ????????????????# ??# # """ """ #????????????? | | ????????????#???# ??# + #?#??????????? | | ????????????????# ??# ########???????????????? | | ????????????????# ???# ##???#?????????????????? | | ?????????????#??# ??## ##??#??????#???????????? | | ???????????????## ??# ########??????????????? | | ????????????#???# ??# #??????????????? | | ????????????????# ???# < #?????#????????? | | ????????????????? ???# ##??#??#???????? | | ?????????????????????# #### ##?????????????? | | ?????????????????????########?# #????#?????????? | | ????????????????? ??#??????#??# #??????????????? | | ?????????????????????#?######## #??????????????? | | ???????????????????????# #??????????????? | | ????????????? ? ??? ???# #?????#????????? | | ??????????????#?????#??# ##?????????????? | | ????????? ????????? #?## @t########???#??????????? | | ?????????????????????#?# #?#???????????????????? | | ??????????? ????? ????## #?#???? ?? ? ?????????? | | ?????????????#??????#??# #?????????? ?????????? | | ????????????????# ?#??# #?? ?"? ??? ????????? | | ????????????????? ????# #?????""? ?????????? | | ????????????????? ??#??# #?? ???"" ???????????? | | ??????????????#?#?????##g #?#?? "T" ????????? | | ???????????????## ??###; Y### ? ?????????? | | ?????????#????#?# ??# # u ; "##??? ?#???????????? | | ????????????##### #### ;""#######????????????? | | ????????? !%|! ????????? | | ????????? * uu= ???????? | | ????????? " ????????? | | ?????????######## " !=########????????? | | ?????????#??#??"" ! #???#???????????? | | ???????????????"T #???????????????? | | ????????????#??"" #???????????????? | | ??????????#?#??## #??? ???????????? | | ??????????????#?# #?"?????????????? | | ????????????????# ##T# #?? ????????????? | | ????????????????##+#?### #??? ???????????? | | ????????????????? ????# ##??????????????? | | ???????????????? ?????# #???????????????? | | ?????????????????? ????+ ??????????????????? | +----------------------------------------------------+ Best States ------------- Heat Dissipation 38 Energy Generation 15 Energy Capacity 160 Matter Stores 300 Matter Capacity 300 Sight Range 16 Terrain Scan Range 16 Terrain Scan Density 10 Evasion (%) 50 Recoil Reduction 1 Item Schematics ----------------- None Robot Schematics ------------------ None Fabricated ------------ Nothing Alien Tech Used ----------------- None Achievements -------------- Crack Shot First Step to Greatness Loot Pinata One Hack Too Far Uninvited Guest Challenges ------------ None Game ------ Seed FireRestorationMace Manual? 0 Play Time 01:00:18 Cumulative 0.9 hours Start 2024.05.17 @ 16:21:07 End 2024.05.17 @ 18:02:14 Sessions 1 Manual Loads 0 Difficulty Rogue Special Mode None Game No. 1 Rogue 1 Adventurer 0 Explorer 0 Win Type - Total 0 Types 0/0/0/0/0/0/0/0/0 Lore% 0 Gallery% 1 Achievement% 1 Wizard Run 0 Options --------- Layout 1 ASCII 0 Keyboard 0 Movement Mouse Keybinds 0 Fullscreen 1 Font 24/Smallcaps Map View 50x35 Zoom Use 0% Tactical HUD 0 Map Filters NONE Filters NONE Steam 1 RUN: 9f394cc5-5290-4d57-8f82-95851f698996